Workbook

Sheet Calculation Sheet
B1: Redundancy Calculator 2023 - Redundancy Payment Estimate
B5: This calculator is designed to assist continuing staff members, who are considering submission of an expression of interest in Voluntary Redundancy, with calculation of an approximate dollar value of a redundancy payment in accordance with the provisions of the ACU Staff Enterprise Agreement 2022-2025.
B6: The approximate entitlement calculation contained herein is provided as an estimate only. Your formal redundancy calculation and separation payments, calculated by People and Capability if separation proceeds for reason of redundancy, may vary from this estimate. All staff are encouraged to seek financial advice before submitting an expression of interest for voluntary redundancy.
B8: Please select the salary plan, input the work hours per fortnight, the years of completed service and date of birth.
C9: Choose your salary type and classification, then enter details in the yellow cells
B10: Academic / Professional/ Senior Management | E10: ="AL Balance as at "&TEXT($C$22,"DD MMM YYYY") -> AL Balance as at 00 Jan 1900 | H10: Hours
B11: Classification | E11: ="LSL Balance as at "&TEXT($C$22,"DD MMM YYYY") -> LSL Balance as at 00 Jan 1900 | H11: Hours | S11: Marginal Tax on leave payout
B12: Salary Loading % (if applicable) | E12: Login to Staff Connect to view your leave balances. | S12: Annual Taxable Salary | T12: =C36 -> 0
B13: Clinical Loading: | E13: You can use the 'Predict' function to calculate leave balances for a future date. | S13: Leave payout | T13: =D63 -> 0
B14: ELT Allowance: | S14: Total Annual Income | T14: =SUM(T12:T13) -> 0
S15: current fortnightly Pay | T15: =D36 -> 0
B16: Annual Salary Amount | S16: New fortnightly income | T16: =T14/26.08929 -> 0
B17: Hours per fortnight | S17: New fortnightly tax | T17: =VLOOKUP(T16,'Tax Rates'!A:B,2,TRUE) -> 
B18: Full-time hours per fortnight are 70. Your current hours per fortnight appears as "units" on your payslip. | S18: current fortnightly tax | T18: =VLOOKUP(T15,'Tax Rates'!A:B,2,TRUE) -> 
S19: Fortnightly tax difference | T19: =T17-T18 -> 
B20: Date Commenced at ACU | S20: Tax on leave payout | T20: =T19*26 -> 
S21: % tax on leave payout | T21: =T20/T13 -> 
B22: Estimated Separation Date
B23: This is for modelling purposes only. The actual redundancy date will be determined by the University.
B25: ="Years of Completed Service at "&TEXT($C$22,"DD MMM YYYY") -> Years of Completed Service at 00 Jan 1900 | C25: =ROUNDDOWN(YEARFRAC(C20,C22,3),0) -> 0 | U25: 1952-06-30 | W25: 65
U26: 1952-07-01 | V26: 1953-12-31 | W26: 65.5
B27: Date of Birth | U27: 1954-01-01 | V27: 1955-06-30 | W27: 66
B28: ="Age at "&TEXT($C$22,"DD MMM YYYY") -> Age at 00 Jan 1900 | C28: =IF(C27="","",YEARFRAC(C27,C22)) ->  | U28: 1955-07-01 | V28: 1956-12-31 | W28: 66.5
B29: Age at 30 June 2024 | C29: =IF(C27="","",YEARFRAC(C27,"30/06/2024")) -> 
B30: Reached Pension Age? | C30: =IF(C27="","",IF(AND(C27<U25,C28>W25),"Y",IF(AND(AND(C27>=U26,C27<=V26),C28>=W26),"Y",IF(AND(AND(C27>=U27,C27<=V27),C28>=W27),"Y",IF(AND(AND(C27>=U28,C27<=V28),C28>=W28),"Y",IF(AND(C27>=U30,C27<W30),"Y","N")))))) ->  | U30: 1957-01-01 | W30: 67
B31: Reached Preservation Age? | C31: =IF($C$27="","",IF(AND($C$27<=U33,$C$29>W33),"Y",IF(AND(AND($C$27>=U34,$C$27<=V34),$C$29>=W34),"Y",IF(AND(AND($C$27>=U35,$C$27<=V35),$C$29>=W35),"Y",IF(AND(AND($C$27>=U36,$C$27<=V36),$C$29>=W36),"Y",IF(AND(AND($C$27>=U37,$C$27<=V37),$C$29>=W37),"Y",IF(AND($C$27>=U38,$C$29>=W38),"Y","N"))))))) ->  | D31: =C27 -> 00:00:00
D32: =C28 -> 
B33: Salary Details | C33: Annual | D33: Fortnightly | E33: Weekly | F33: Hourly | U33: 1960-06-30 | W33: 55
B34: Salary | C34: =(IFERROR(IF(C10="Senior Management",C16,VLOOKUP(C11,'Salary Rate'!B:D,3,FALSE))*(C17/70)," ")) ->  | D34: =IFERROR(C34/26.08929,"") ->  | E34: =IFERROR(D34/2,"") ->  | F34: =IFERROR(D34/C17,"") ->  | U34: 1960-07-01 | V34: 1961-06-30 | W34: 56
B35: Salary Loading | C35: =IFERROR(C34*C12," ") ->  | D35: =IFERROR(C35/26.08929,"") ->  | E35: =IFERROR(D35/2,"") ->  | F35: =IFERROR(D35/C17," ") ->  | U35: 1961-07-01 | V35: 1962-06-30 | W35: 57
B36: Current Salary | C36: =SUM(C34:C35) -> 0 | D36: =SUM(D34:D35) -> 0 | E36: 0 | F36: 0 | U36: 1962-07-01 | V36: 1963-06-30 | W36: 58
U37: 1963-07-01 | V37: 1964-06-30 | W37: 59
U38: 1964-07-01 | W38: 60
B39: Redundancy payment estimate
B40: ="Assuming employment end date of "&TEXT($C$22,"DD MMM YYYY") -> Assuming employment end date of 00 Jan 1900
B41: Refer to the Estimated Entitlement section below for further information about this estimate.
B42: This simple calculator does not take into account any variations between the current working arrangements and a staff member's substantive working arrangements.
B43: Estimated Redundancy Entitlement | C43: Weeks | D43: Amount | F43: 0 | U43: Tax Rates | Y43: ETP Rates
B44: Payment in Lieu of Notice | C44: =IF(C10=0," ",IF(AND(C10="Professional",C25<5),MAX(3*C25,3),26)) ->  | D44: =IFERROR(C44*($C$17/2)*$F$36," ") ->  | E44: Payment in lieu of notice is reduced by the time elapsed | U44: Under Preservation Age | W44: 32 | Y44: =IF(C31="Y",17%,32%) -> 0.32
B45: Severance Pay | C45: =IF(C10=0," ",IF(C10="Senior Management"," ",IF(C28<45,VLOOKUP(C25,'Severance payment'!$A$5:$B$57,2,FALSE),VLOOKUP('Calculation Sheet'!C25,'Severance payment'!$A$6:$C$57,3,FALSE)))) ->  | D45: =IFERROR(C45*($C$17/2)*$F$36," ") ->  | E45: between your notice date and separation date | U45: On or over preservation Age | W45: 0.17 | Y45: 0.47
B46: Total weeks (capped at 78 wks) | C46: =IF(SUM(C44:C45)>78,78,SUM(C44:C45)) -> 0 | D46: =SUM(D44:D45) -> 0 | U46: Over $235000
B48: Package Details
B49: Tax free Component | D49: =IF(C30="N",MIN((11985+5994*$C$25),D46),0) -> 0
B50: ($11,985 plus $5,994 per completed years of service) | D50: =IF($D$28="","",IF($D31="Y", 0, TFC_Base +(( TFC_eachYOS)*$D$28))) ->  | U50: Weekly Salary | V50: =+AA46 -> 0
U51: Lve Loading Full Year | V51: =V50*4*17.5% -> 0
B52: Taxable Amount | D52: =IFERROR(IF($D$46-$D$49<0, 0, $D$46-$D$49),"") -> 0 | U52: Days worked since | V52: 2022-12-31 | W52: =NETWORKDAYS($V$52,$C$22) -> -32090
U53: EA Lve Loading days | V53: 260
B54: Tax Rate (up to $235K) | C54: =Y44 -> 0.32 | D54: =IFERROR(ROUNDUP(IF(D52>235000,235000*C54,D52*C54),0)," ") -> 0
B55: Tax Rate (after the first $235K) | C55: =Y45 -> 0.47 | D55: =IFERROR(ROUNDUP(IF(D52<235000,0,(D52-235000)*C55),0)," ") -> 0 | V55: =W52/V53 -> -123.4230769
B56: Total Tax Amount | D56: =SUM(D54:D55) -> 0 | U56: Pro Rata Loading | V56: =MIN(((E36*4*17.5%)/V53)*W52,1640.9) -> 0
B59: Leave Details | C59: Balance | D59: Amount
B60: Annual Leave | C60: =G10 -> 0 | D60: =ROUND(C60*$F$36,2) -> 0
B61: Long Service Leave | C61: =G11 -> 0 | D61: =ROUND(C61*$F$36,2) -> 0
B62: Leave Loading | D62: =IF(ISBLANK(C20)," ",V56) -> 
D63: =SUM(D60:D62) -> 0
B64: Tax on Leave Payout | D64: =IFERROR(IF(C30="N",ROUNDUP(D63*0.32,0),$T$20)," ") -> 
B66: Summary of Payments | C66: Gross: | D66: Tax | E66: Net
B67: Redundancy | C67: =D46 -> 0 | D67: =D56 -> 0 | E67: =IFERROR(C67-D67," ") -> 0
B68: Leave Payout | C68: =D63 -> 0 | D68: =D64 ->  | E68: =IFERROR(C68-D68,"") -> 
B69: Total Payout | C69: =SUM(C67:C68) -> 0 | D69: =SUM(D67:D68) -> 0 | E69: =SUM(E67:E68) -> 0
B73: Years of Completed Service
B74: - Service with other organisations will not be taken into consideration when calculating length of service for redundancy entitlements.
B75: - Any period of leave without pay greater than 6 weeks will have an impact on length of service for redundancy purposes and therefore on the redundancy payment calculation. This simple calculator is unable to take leave without pay into account.
B80: Estimated Entitlement
B81: - The severance pay component of a redundancy calculation is capped at 52 weeks under the Enterprise Agreement. The calculation of severance pay (C44) is automatically capped at 52 weeks.
B82: - The maximum redundancy payment entitlement is 78 weeks under the Enterprise Agreement. The calculation of the total redundancy payment (C45) is automatically capped at 78 weeks.
B83: - Payments in lieu of notice are calculated at the salary level and fraction that would have been received, if the staff member had been working for the relevant period.
B84: - Severance payments will be calculated at the staff member’s substantive salary. This simple calculator does not take into account any variations between the current working arrangements and a staff member's substantive working arrangements.
B86: Preservation Age
B87: - Preservation age is the age you can access your superannuation if you are retired (or start a transition to retirement income stream). Once preservation age is reached the taxable component of the redundancy payment is taxed at a lower rate of 17% for amounts up to $235,000 and 47% on any amount over $235,000. Please see tables below for preservation age (dependent on birth date) and taxation treatment for those under and over preservation age.
B88: Date of birth | C88: Preservation age | E88: Age as at 30 June | F88: Rate of tax 2023/24
B89: Before 1 July 1960 | C89: 55 | E89: Under Preservation age | F89: 32% up to $235,000
B90: 1 July 1960 to 30 June 1961 | C90: 56 | F90: 47% on excess over $235,000
B91: 1 July 1961 to 30 June 1962 | C91: 57 | E91: Preservation age or older | F91: 17% up to $235,000
B92: 1 July 1962 to 30 June 1963 | C92: 58 | F92: 47% on excess over $235,000
B93: 1 July 1963 to 30 June 1964 | C93: 59
B94: From 1 July 1964 | C94: 60
B96: Pension Age
B97: - If you have reached pension age or older on the date that employment terminates by way of redundancy, then the tax treatment of the redundancy payment differs from that above. The whole redundancy payment (not just the taxable amount) is taxed at 17% for amounts up to $235,000 and 47% on any amount over $235,000.
B98: Date of Birth | C98: Qualifying Pension Age
B99: Before 1 July 1952 | C99: 65 yrs
B100: 1 July 1952 to 31 December 1953 | C100: 65 yrs and 6 mths
B101: 1 January 1954 to 30 June 1955 | C101: 66 yrs
B102: 1 July 1955 to 31 December 1956 | C102: 66 yrs and 6 mths
B103: On or after 1 January 1957 | C103: 67 yrs

Sheet Severance payment (hidden)
A2: Severance Payments - As per clause 8.8 of ACU Staff Enterprise Agreement 2022-2025
B4: No. of weeks' salary
A5: Completed continuous years of service on Termination | B5: Less than 45 years old | C5: 45 years old or older
A6: 0 | B6: 4 | C6: 5
A7: 1 | B7: 4 | C7: 5
A8: 2 | B8: 7 | C8: 8.75
A9: 3 | B9: 10 | C9: 12.5
A10: 4 | B10: 13 | C10: 16.25
A11: 5 | B11: 15 | C11: 18.75
A12: 6 | B12: 17 | C12: 21.25
A13: 7 | B13: 19 | C13: 23.75
A14: 8 | B14: 21 | C14: 26.25
A15: 9 | B15: 23 | C15: 28.75
A16: 10 | B16: 31.25 | C16: 31.25
A17: 11 | B17: 33.75 | C17: 33.75
A18: 12 | B18: 36.25 | C18: 36.25
A19: 13 | B19: 38.75 | C19: 38.75
A20: 14 | B20: 41.25 | C20: 41.25
A21: 15 | B21: 43.75 | C21: 43.75
A22: 16 | B22: 46.25 | C22: 46.25
A23: 17 | B23: 48.75 | C23: 48.75
A24: 18 | B24: 51.25 | C24: 51.25
A25: 19 | B25: 52 | C25: 52
A26: 20 | B26: 52 | C26: 52
A27: 21 | B27: 52 | C27: 52
A28: 22 | B28: 52 | C28: 52
A29: 23 | B29: 52 | C29: 52
A30: 24 | B30: 52 | C30: 52
A31: 25 | B31: 52 | C31: 52
A32: 26 | B32: 52 | C32: 52
A33: 27 | B33: 52 | C33: 52
A34: 28 | B34: 52 | C34: 52
A35: 29 | B35: 52 | C35: 52
A36: 30 | B36: 52 | C36: 52
A37: 31 | B37: 52 | C37: 52
A38: 32 | B38: 52 | C38: 52
A39: 33 | B39: 52 | C39: 52
A40: 34 | B40: 52 | C40: 52
A41: 35 | B41: 52 | C41: 52
A42: 36 | B42: 52 | C42: 52
A43: 37 | B43: 52 | C43: 52
A44: 38 | B44: 52 | C44: 52
A45: 39 | B45: 52 | C45: 52
A46: 40 | B46: 52 | C46: 52
A47: 41 | B47: 52 | C47: 52
A48: 42 | B48: 52 | C48: 52
A49: 43 | B49: 52 | C49: 52
A50: 44 | B50: 52 | C50: 52
A51: 45 | B51: 52 | C51: 52
A52: 46 | B52: 52 | C52: 52
A53: 47 | B53: 52 | C53: 52
A54: 48 | B54: 52 | C54: 52
A55: 49 | B55: 52 | C55: 52
A56: 50 | B56: 52 | C56: 52
A57: 51 | B57: 52 | C57: 52

Sheet Notice (hidden)
A1: Notice Period - As per clause 8.6 of ACU Staff Enterprise Agreement 2022-2025
A3: Completed years of service at the end of the day when notice is given | B3: Period of Notice
A4: Professional Staff less than or equal to 5 years of service | B4: 3 weeks per year of service
A5: Professional Staff more than 5 years of service | B5: 26 weeks
A6: Academic Staff | B6: 26 weeks
A9: Interpretation of above provision in relation to Professional staff
A10: Completed years of service at the end of the day when notice is given | B10: Period of Notice
B11: (weeks)
A12: 0 | B12: 3
A13: 1 | B13: 3
A14: 2 | B14: 6
A15: 3 | B15: 9
A16: 4 | B16: 12
A17: 5 | B17: 26
A18: 6 | B18: 26
A19: 7 | B19: 26
A20: 8 | B20: 26
A21: 9 | B21: 26
A22: 10 | B22: 26
A23: 11 | B23: 26
A24: 12 | B24: 26
A25: 13 | B25: 26
A26: 14 | B26: 26
A27: 15 | B27: 26
A28: 16 | B28: 26
A29: 17 | B29: 26
A30: 18 | B30: 26
A31: 19 | B31: 26
A32: 20 | B32: 26
A33: 21 | B33: 26
A34: 22 | B34: 26
A35: 23 | B35: 26
A36: 24 | B36: 26
A37: 25 | B37: 26
A38: 26 | B38: 26
A39: 27 | B39: 26
A40: 28 | B40: 26
A41: 29 | B41: 26
A42: 30 | B42: 26
A43: 31 | B43: 26
A44: 32 | B44: 26
A45: 33 | B45: 26
A46: 34 | B46: 26
A47: 35 | B47: 26
A48: 36 | B48: 26
A49: 37 | B49: 26
A50: 38 | B50: 26
A51: 39 | B51: 26
A52: 40 | B52: 26
A53: 41 | B53: 26
A54: 42 | B54: 26
A55: 43 | B55: 26
A56: 44 | B56: 26
A57: 45 | B57: 26
A58: 46 | B58: 26
A59: 47 | B59: 26
A60: 48 | B60: 26
A61: 49 | B61: 26
A62: 50 | B62: 26
A63: 51 | B63: 26

Sheet Salary Rate (hidden)
A1: ACADEMIC STAFF SALARY RATES EFFECTIVE 07 JANUARY 2023
A2: Updated 23 November 2022
A3: PAY CLASS | B3: SALARY RATES | C3: 2.2% increase 09/07/2022 | D3: 2.8% increase (+cost of living $) 07/01/2023 | E3: F/N Salary | F3: Hourly Rate | G3: Casual Hourly Rate With 25% Loading | H3: Super @17% | I3: Annual leave loading | J3: Total Rem | K3: Total Rem
J4: (2 d.p)
A5: ACA1 | B5: Academic Level A, Increment 1 | C5: 72009 | D5: 75053 | E5: 2876.77 | F5: 41.09678 | G5: 51.37098 | H5: 12759.01 | I5: =MIN(D5/52.17858*4*0.175,1640.9) -> 1006.871019 | J5: =SUM(D5,H5:I5) -> 88818.88102 | K5: =ROUNDDOWN(J5,0) -> 88818
A6: ACA2 | B6: Academic Level A, Increment 2 | C6: 76121 | D6: 79280 | E6: 3038.79 | F6: 43.41135 | G6: 54.26419 | H6: 13477.6 | I6: =MIN(D6/52.17858*4*0.175,1640.9) -> 1063.578196 | J6: =SUM(D6,H6:I6) -> 93821.1782 | K6: =ROUNDDOWN(J6,0) -> 93821
A7: ACA3 | B7: Academic Level A, Increment 3 | C7: 80234 | D7: 83509 | E7: 3200.89 | F7: 45.72703 | G7: 57.15879 | H7: 14196.53 | I7: 1120.312205 | J7: 98825.8422 | K7: 98825
A8: ACA4 | B8: Academic Level A, Increment 4 | C8: 84347 | D8: 87737 | E8: 3362.95 | F8: 48.04216 | G8: 60.0527 | H8: 14915.29 | I8: 1177.032798 | J8: 103829.3228 | K8: 103829
A9: ACA5 | B9: Academic Level A, Increment 5 | C9: 87693 | D9: 91176 | E9: 3494.77 | F9: 49.92525 | G9: 62.40656 | H9: 15499.92 | I9: 1223.168588 | J9: 107899.0886 | K9: 107899
A10: ACA6 | B10: Academic Level A, Increment 6 | C10: 91034 | D10: 94611 | E10: 3626.43 | F10: 51.80615 | G10: 64.75769 | H10: 16083.87 | I10: 1269.250716 | J10: 111964.1207 | K10: 111964
A11: ACA7 | B11: Academic Level A, Increment 7 | C11: 94381 | D11: 98052 | E11: 3758.32 | F11: 53.69034 | G11: 67.11293 | H11: 16668.84 | I11: 1315.413336 | J11: 116036.2533 | K11: 116036
A12: ACA8 | B12: Academic Level A, Increment 8 | C12: 97722 | D12: 101486 | E12: 3889.95 | F12: 55.5707 | G12: 69.46338 | H12: 17252.62 | I12: 1361.482049 | J12: 120100.102 | K12: 120100
A13: ACB1 | B13: Academic Level B, Increment 1 | C13: 106728 | D13: 109716 | E13: 4205.4 | F13: 60.0772 | G13: 75.0965 | H13: 18651.72 | I13: 1471.891339 | J13: 129839.6113 | K13: 129839
A14: ACB2 | B14: Academic Level B, Increment 2 | C14: 110580 | D14: 113676 | E14: 4357.19 | F14: 62.24557 | G14: 77.80696 | H14: 19324.92 | I14: 1525.016587 | J14: 134525.9366 | K14: 134525
A15: ACB3 | B15: Academic Level B, Increment 3 | C15: 114442 | D15: 117646 | E15: 4509.36 | F15: 64.41943 | G15: 80.52429 | H15: 19999.82 | I15: 1578.27599 | J15: 139224.096 | K15: 139224
A16: ACB4 | B16: Academic Level B, Increment 4 | C16: 118298 | D16: 121610 | E16: 4661.3 | F16: 66.59 | G16: 83.2375 | H16: 20673.7 | I16: 1631.4549 | J16: 143915.1549 | K16: 143915
A17: ACB5 | B17: Academic Level B, Increment 5 | C17: 122156 | D17: 125576 | E17: 4813.32 | F17: 68.76166 | G17: 85.95208 | H17: 21347.92 | I17: 1640.9 | J17: 148564.82 | K17: 148564
A18: ACB6 | B18: Academic Level B, Increment 6 | C18: 126011 | D18: 129539 | E18: 4965.22 | F18: 70.93168 | G18: 88.6646 | H18: 22021.63 | I18: 1640.9 | J18: 153201.53 | K18: 153201
A19: ACC1 | B19: Academic Level C, Increment 1 | C19: 133726 | D19: 137470 | E19: 5269.21 | F19: 75.27446 | G19: 94.09308 | H19: 23369.9 | I19: 1640.9 | J19: 162480.8 | K19: 162480
A20: ACC2 | B20: Academic Level C, Increment 2 | C20: 137587 | D20: 141439 | E20: 5421.34 | F20: 77.44776 | G20: 96.8097 | H20: 24044.63 | I20: 1640.9 | J20: 167124.53 | K20: 167124
A21: ACC3 | B21: Academic Level C, Increment 3 | C21: 141437 | D21: 145397 | E21: 5573.05 | F21: 79.61505 | G21: 99.51881 | H21: 24717.49 | I21: 1640.9 | J21: 171755.39 | K21: 171755
A22: ACC4 | B22: Academic Level C, Increment 4 | C22: 145299 | D22: 149367 | E22: 5725.22 | F22: 81.7889 | G22: 102.23613 | H22: 25392.39 | I22: 1640.9 | J22: 176400.29 | K22: 176400
A23: ACD1 | B23: Academic Level D, Increment 1 | C23: 151732 | D23: 155980 | E23: 5978.7 | F23: 85.40998 | G23: 106.76248 | H23: 26516.6 | I23: 1640.9 | J23: 184137.5 | K23: 184137
A24: ACD2 | B24: Academic Level D, Increment 2 | C24: 156869 | D24: 161261 | E24: 6181.12 | F24: 88.3017 | G24: 110.37713 | H24: 27414.37 | I24: 1640.9 | J24: 190316.27 | K24: 190316
A25: ACD3 | B25: Academic Level D, Increment 3 | C25: 162015 | D25: 166551 | E25: 6383.88 | F25: 91.19834 | G25: 113.99793 | H25: 28313.67 | I25: 1640.9 | J25: 196505.57 | K25: 196505
A26: ACD4 | B26: Academic Level D, Increment 4 | C26: 167158 | D26: 171838 | E26: 6586.53 | F26: 94.09335 | G26: 117.61669 | H26: 29212.46 | I26: 1640.9 | J26: 202691.36 | K26: 202691
A27: ACE1 | B27: Academic Level E, Increment 1 | C27: 195450 | D27: 200923 | E27: 7701.36 | F27: 110.01942 | G27: 137.52428 | H27: 34156.91 | I27: 1640.9 | J27: 236720.81 | K27: 236720
A30: PROFESSIONAL STAFF SALARY RATES AS AT 7 JANUARY 2023 (leave loading cap updated effective 02/09/2023)
A31: Updated 23 November 2022
A32: PAY CLASS | B32: SALARY RATES | C32: 2.2% increase 09/07/2022 | D32: 2.8% increase (+cost of living $) 07/01/2023 | E32: F/N AMOUNT | F32: HOURLY RATE | G32: CASUAL HOURLY RATE WITH 25% LOADING | H32: Super @17% | I32: Annual leave loading | J32: Total Rem (2 d.p) | K32: Total Rem
A33: HEW11 | B33: HEW 1 Increment 1 | C33: 52506 | D33: 55004 | E33: 2108.3 | F33: 30.11854 | G33: 37.64818 | H33: 9350.68 | I33: =MIN(D33/52.17858*4*0.175,1640.9) -> 737.9043278 | J33: =SUM(D33,H33:I33) -> 65092.58433 | K33: =ROUNDDOWN(J33,0) -> 65092
A34: HEW12 | B34: HEW 1 Increment 2 | C34: 53750 | D34: 56283 | E34: 2157.32 | F34: 30.81889 | G34: 38.52361 | H34: 9568.11 | I34: =MIN(D34/52.17858*4*0.175,1640.9) -> 755.0627096 | J34: =SUM(D34,H34:I34) -> 66606.17271 | K34: =ROUNDDOWN(J34,0) -> 66606
A35: HEW13 | B35: HEW 1 Increment 3 | C35: 55000 | D35: 57568 | E35: 2206.58 | F35: 31.52251 | G35: 39.40314 | H35: 9786.56 | I35: =MIN(D35/52.17858*4*0.175,1640.9) -> 772.3015843 | J35: 68126.86158 | K35: 68126
A36: HEW21 | B36: HEW 2 Increment 1 | C36: 56491 | D36: 59101 | E36: 2265.34 | F36: 32.36194 | G36: 40.45243 | H36: 10047.17 | I36: 792.8674947 | J36: 69941.03749 | K36: 69941
A37: HEW22 | B37: HEW 2 Increment 2 | C37: 57742 | D37: 60387 | E37: 2314.63 | F37: 33.06611 | G37: 41.33264 | H37: 10265.79 | I37: 810.1197848 | J37: 71462.90978 | K37: 71462
A38: HEW23 | B38: HEW 2 Increment 3 | C38: 59235 | D38: 61922 | E38: 2373.46 | F38: 33.90663 | G38: 42.38329 | H38: 10526.74 | I38: 830.7125261 | J38: 73279.45253 | K38: 73279
A39: HEW31 | B39: HEW 3 Increment 1 | C39: 60727 | D39: 63455 | E39: 2432.22 | F39: 34.74606 | G39: 43.43258 | H39: 10787.35 | I39: 851.2784365 | J39: 75093.62844 | K39: 75093
A40: HEW32 | B40: HEW 3 Increment 2 | C40: 62228 | D40: 64998 | E40: 2491.37 | F40: 35.59096 | G40: 44.4887 | H40: 11049.66 | I40: 871.9785015 | J40: 76919.6385 | K40: 76919
A41: HEW33 | B41: HEW 3 Increment 3 | C41: 63721 | D41: 66533 | E41: 2550.2 | F41: 36.43148 | G41: 45.53935 | H41: 11310.61 | I41: 892.5712428 | J41: 78736.18124 | K41: 78736
A42: HEW34 | B42: HEW 3 Increment 4 | C42: 65230 | D42: 68084 | E42: 2609.65 | F42: 37.28076 | G42: 46.60095 | H42: 11574.28 | I42: 913.3786316 | J42: 80571.65863 | K42: 80571
A43: HEW41 | B43: HEW 4 Increment 1 | C43: 67262 | D43: 70173 | E43: 2689.72 | F43: 38.42463 | G43: 48.03079 | H43: 11929.41 | I43: 941.4035415 | J43: 83043.81354 | K43: 83043
A44: HEW42 | B44: HEW 4 Increment 2 | C44: 69024 | D44: 71985 | E44: 2759.18 | F44: 39.41683 | G44: 49.27104 | H44: 12237.45 | I44: 965.712367 | J44: 85188.16237 | K44: 85188
A45: HEW43 | B45: HEW 4 Increment 3 | C45: 70807 | D45: 73818 | E45: 2829.44 | F45: 40.42053 | G45: 50.52566 | H45: 12549.06 | I45: 990.3029174 | J45: 87357.36292 | K45: 87357
A46: HEW44 | B46: HEW 4 Increment 4 | C46: 72843 | D46: 75911 | E46: 2909.66 | F46: 41.56659 | G46: 51.95824 | H46: 12904.87 | I46: 1018.381489 | J46: 89834.25149 | K46: 89834
A47: HEW51 | B47: HEW 5 Increment 1 | C47: 74922 | D47: 78048 | E47: 2991.57 | F47: 42.73675 | G47: 53.42094 | H47: 13268.16 | I47: 1047.050341 | J47: 92363.21034 | K47: 92363
A48: HEW52 | B48: HEW 5 Increment 2 | C48: 77005 | D48: 80189 | E48: 3073.64 | F48: 43.9091 | G48: 54.88638 | H48: 13632.13 | I48: 1075.772855 | J48: 94896.90286 | K48: 94896
A49: HEW53 | B49: HEW 5 Increment 3 | C49: 79104 | D49: 82347 | E49: 3156.35 | F49: 45.09075 | G49: 56.36344 | H49: 13998.99 | I49: 1104.723432 | J49: 97450.71343 | K49: 97450
A50: HEW54 | B50: HEW 5 Increment 4 | C50: 81188 | D50: 84489 | E50: 3238.46 | F50: 46.26365 | G50: 57.82956 | H50: 14363.13 | I50: 1133.459362 | J50: 99985.58936 | K50: 99985
A51: HEW61 | B51: HEW 6 Increment 1 | C51: 83773 | D51: 86633 | E51: 3320.63 | F51: 47.43764 | G51: 59.29705 | H51: 14727.61 | I51: 1162.222123 | J51: 102522.8321 | K51: 102522
A52: HEW62 | B52: HEW 6 Increment 2 | C52: 85854 | D52: 88772 | E52: 3402.62 | F52: 48.60889 | G52: 60.76111 | H52: 15091.24 | I52: 1190.917806 | J52: 105054.1578 | K52: 105054
A53: HEW63 | B53: HEW 6 Increment 3 | C53: 87937 | D53: 90913 | E53: 3484.69 | F53: 49.78124 | G53: 62.22655 | H53: 15455.21 | I53: 1219.64032 | J53: 107587.8503 | K53: 107587
A54: HEW64 | B54: HEW 6 Increment 4 | C54: 90022 | D54: 93057 | E54: 3566.87 | F54: 50.95523 | G54: 63.69404 | H54: 15819.69 | I54: 1248.40308 | J54: 110125.0931 | K54: 110125
A55: HEW71 | B55: HEW 7 Increment 1 | C55: 92665 | D55: 95774 | E55: 3671.01 | F55: 52.44298 | G55: 65.55373 | H55: 16281.58 | I55: 1284.852903 | J55: 113340.4329 | K55: 113340
A56: HEW72 | B56: HEW 7 Increment 2 | C56: 95206 | D56: 98386 | E56: 3771.13 | F56: 53.87323 | G56: 67.34154 | H56: 16725.62 | I56: 1319.894102 | J56: 116431.5141 | K56: 116431
A57: HEW73 | B57: HEW 7 Increment 3 | C57: 97751 | D57: 101002 | E57: 3871.4 | F57: 55.30567 | G57: 69.13209 | H57: 17170.34 | I57: 1354.988963 | J57: 119527.329 | K57: 119527
A58: HEW74 | B58: HEW 7 Increment 4 | C58: 100290 | D58: 103612 | E58: 3971.44 | F58: 56.73483 | G58: 70.91854 | H58: 17614.04 | I58: 1390.003331 | J58: 122616.0433 | K58: 122616
A59: HEW81 | B59: HEW 8 Increment 1 | C59: 103343 | D59: 106237 | E59: 4072.05 | F59: 58.1722 | G59: 72.71525 | H59: 18060.29 | I59: 1425.218931 | J59: 125722.5089 | K59: 125722
A60: HEW82 | B60: HEW 8 Increment 2 | C60: 107412 | D60: 110420 | E60: 4232.39 | F60: 60.46269 | G60: 75.57836 | H60: 18771.4 | I60: 1481.335828 | J60: 130672.7358 | K60: 130672
A61: HEW83 | B61: HEW 8 Increment 3 | C61: 111466 | D61: 114587 | E61: 4392.11 | F61: 62.74441 | G61: 78.43051 | H61: 19479.79 | I61: 1537.238077 | J61: 135604.0281 | K61: 135604
A62: HEW84 | B62: HEW 8 Increment 4 | C62: 115538 | D62: 118773 | E62: 4552.56 | F62: 65.03654 | G62: 81.29568 | H62: 20191.41 | I62: 1593.395221 | J62: 140557.8052 | K62: 140557
A63: HEW91 | B63: HEW 9 Increment 1 | C63: 119861 | D63: 123217 | E63: 4722.9 | F63: 67.46994 | G63: 84.33743 | H63: 20946.89 | I63: 1640.9 | J63: 145804.79 | K63: 145804
A64: HEW92 | B64: HEW 9 Increment 2 | C64: 123914 | D64: 127384 | E64: 4882.62 | F64: 69.75167 | G64: 87.18959 | H64: 21655.28 | I64: 1640.9 | J64: 150680.18 | K64: 150680
A65: HEW93 | B65: HEW 9 Increment 3 | C65: 127988 | D65: 131572 | E65: 5043.14 | F65: 72.04489 | G65: 90.05611 | H65: 22367.24 | I65: 1640.9 | J65: 155580.14 | K65: 155580
A66: HEW100 | B66: HEW 10 Base 0 Min | C66: 129521 | D66: 133148 | E66: 5103.55 | F66: 72.90786 | G66: 91.13483 | H66: 22635.16 | I66: 1640.9 | J66: 157424.06 | K66: 157424
A67: HEW101 | B67: HEW 10 Base 1 | C67: 135996 | D67: 139804 | E67: 5358.67 | F67: 76.55249 | G67: 95.69061 | H67: 23766.68 | I67: 1640.9 | J67: 165211.58 | K67: 165211
A68: HEW102 | B68: HEW 10 Base 2 | C68: 142472 | D68: 146461 | E68: 5613.84 | F68: 80.19766 | G68: 100.24708 | H68: 24898.37 | I68: 1640.9 | J68: 173000.27 | K68: 173000
A69: HEW103 | B69: HEW 10 Base 3 | C69: 148948 | D69: 153119 | E69: 5869.04 | F69: 83.84338 | G69: 104.80423 | H69: 26030.23 | I69: 1640.9 | J69: 180790.13 | K69: 180790
A70: HEW104 | B70: HEW 10 Base 4 | C70: 155424 | D70: 159776 | E70: 6124.2 | F70: 87.48856 | G70: 109.3607 | H70: 27161.92 | I70: 1640.9 | J70: 188578.82 | K70: 188578
A71: HEW105 | B71: HEW 10 Base 5 | C71: 161900 | D71: 166433 | E71: 6379.36 | F71: 91.13373 | G71: 113.91716 | H71: 28293.61 | I71: 1640.9 | J71: 196367.51 | K71: 196367
A72: HEW106 | B72: HEW 10 Base 6 | C72: 168374 | D72: 173091 | E72: 6634.56 | F72: 94.77945 | G72: 118.47431 | H72: 29425.47 | I72: 1640.9 | J72: 204157.37 | K72: 204157

Sheet Mapping (hidden)
A1: SALARY RATES
A2: Academic | B2: Professional | C2: Senior Management
A3: Academic Level A, Increment 1 | B3: HEW 1 Increment 1
A4: Academic Level A, Increment 2 | B4: HEW 1 Increment 2
A5: Academic Level A, Increment 3 | B5: HEW 1 Increment 3
A6: Academic Level A, Increment 4 | B6: HEW 2 Increment 1
A7: Academic Level A, Increment 5 | B7: HEW 2 Increment 2
A8: Academic Level A, Increment 6 | B8: HEW 2 Increment 3
A9: Academic Level A, Increment 7 | B9: HEW 3 Increment 1
A10: Academic Level A, Increment 8 | B10: HEW 3 Increment 2
A11: Academic Level B, Increment 1 | B11: HEW 3 Increment 3
A12: Academic Level B, Increment 2 | B12: HEW 3 Increment 4
A13: Academic Level B, Increment 3 | B13: HEW 4 Increment 1
A14: Academic Level B, Increment 4 | B14: HEW 4 Increment 2
A15: Academic Level B, Increment 5 | B15: HEW 4 Increment 3
A16: Academic Level B, Increment 6 | B16: HEW 4 Increment 4
A17: Academic Level C, Increment 1 | B17: HEW 5 Increment 1
A18: Academic Level C, Increment 2 | B18: HEW 5 Increment 2
A19: Academic Level C, Increment 3 | B19: HEW 5 Increment 3
A20: Academic Level C, Increment 4 | B20: HEW 5 Increment 4
A21: Academic Level D, Increment 1 | B21: HEW 6 Increment 1
A22: Academic Level D, Increment 2 | B22: HEW 6 Increment 2
A23: Academic Level D, Increment 3 | B23: HEW 6 Increment 3
A24: Academic Level D, Increment 4 | B24: HEW 6 Increment 4
A25: Academic Level E, Increment 1 | B25: HEW 7 Increment 1
B26: HEW 7 Increment 2
B27: HEW 7 Increment 3
B28: HEW 7 Increment 4
B29: HEW 8 Increment 1
B30: HEW 8 Increment 2
B31: HEW 8 Increment 3
B32: HEW 8 Increment 4
B33: HEW 9 Increment 1
B34: HEW 9 Increment 2
B35: HEW 9 Increment 3
B36: HEW 10 Base 0 Min
B37: HEW 10 Base 1
B38: HEW 10 Base 2
B39: HEW 10 Base 3
B40: HEW 10 Base 4
B41: HEW 10 Base 5
B42: HEW 10 Base 6

Sheet Tax Rates (hidden)
A1: Tax Table frm 13 Oct 2020
A2: Fortnightly earnings | B2: With tax‑free threshold | C2: No tax‑free threshold
A3: 2 | B3: 0 | C3: 0
A4: 4 | B4: 0 | C4: 0
A5: 6 | B5: 0 | C5: 2
A6: 8 | B6: 0 | C6: 2
A7: 10 | B7: 0 | C7: 2
A8: 12 | B8: 0 | C8: 2
A9: 14 | B9: 0 | C9: 2
A10: 16 | B10: 0 | C10: 4
A11: 18 | B11: 0 | C11: 4
A12: 20 | B12: 0 | C12: 4
A13: 22 | B13: 0 | C13: 4
A14: 24 | B14: 0 | C14: 4
A15: 26 | B15: 0 | C15: 4
A16: 28 | B16: 0 | C16: 6
A17: 30 | B17: 0 | C17: 6
A18: 32 | B18: 0 | C18: 6
A19: 34 | B19: 0 | C19: 6
A20: 36 | B20: 0 | C20: 6
A21: 38 | B21: 0 | C21: 8
A22: 40 | B22: 0 | C22: 8
A23: 42 | B23: 0 | C23: 8
A24: 44 | B24: 0 | C24: 8
A25: 46 | B25: 0 | C25: 8
A26: 48 | B26: 0 | C26: 10
A27: 50 | B27: 0 | C27: 10
A28: 52 | B28: 0 | C28: 10
A29: 54 | B29: 0 | C29: 10
A30: 56 | B30: 0 | C30: 10
A31: 58 | B31: 0 | C31: 12
A32: 60 | B32: 0 | C32: 12
A33: 62 | B33: 0 | C33: 12
A34: 64 | B34: 0 | C34: 12
A35: 66 | B35: 0 | C35: 12
A36: 68 | B36: 0 | C36: 12
A37: 70 | B37: 0 | C37: 14
A38: 72 | B38: 0 | C38: 14
A39: 74 | B39: 0 | C39: 14
A40: 76 | B40: 0 | C40: 14
A41: 78 | B41: 0 | C41: 14
A42: 80 | B42: 0 | C42: 16
A43: 82 | B43: 0 | C43: 16
A44: 84 | B44: 0 | C44: 16
A45: 86 | B45: 0 | C45: 16
A46: 88 | B46: 0 | C46: 16
A47: 90 | B47: 0 | C47: 18
A48: 92 | B48: 0 | C48: 18
A49: 94 | B49: 0 | C49: 18
A50: 96 | B50: 0 | C50: 18
A51: 98 | B51: 0 | C51: 18
A52: 100 | B52: 0 | C52: 18
A53: 102 | B53: 0 | C53: 20
A54: 104 | B54: 0 | C54: 20
A55: 106 | B55: 0 | C55: 20
A56: 108 | B56: 0 | C56: 20
A57: 110 | B57: 0 | C57: 20
A58: 112 | B58: 0 | C58: 22
A59: 114 | B59: 0 | C59: 22
A60: 116 | B60: 0 | C60: 22
A61: 118 | B61: 0 | C61: 22
A62: 120 | B62: 0 | C62: 22
A63: 122 | B63: 0 | C63: 24
A64: 124 | B64: 0 | C64: 24
A65: 126 | B65: 0 | C65: 24
A66: 128 | B66: 0 | C66: 24
A67: 130 | B67: 0 | C67: 24
A68: 132 | B68: 0 | C68: 26
A69: 134 | B69: 0 | C69: 26
A70: 136 | B70: 0 | C70: 26
A71: 138 | B71: 0 | C71: 26
A72: 140 | B72: 0 | C72: 26
A73: 142 | B73: 0 | C73: 26
A74: 144 | B74: 0 | C74: 28
A75: 146 | B75: 0 | C75: 28
A76: 148 | B76: 0 | C76: 28
A77: 150 | B77: 0 | C77: 28
A78: 152 | B78: 0 | C78: 28
A79: 154 | B79: 0 | C79: 30
A80: 156 | B80: 0 | C80: 30
A81: 158 | B81: 0 | C81: 30
A82: 160 | B82: 0 | C82: 30
A83: 162 | B83: 0 | C83: 30
A84: 164 | B84: 0 | C84: 32
A85: 166 | B85: 0 | C85: 32
A86: 168 | B86: 0 | C86: 32
A87: 170 | B87: 0 | C87: 32
A88: 172 | B88: 0 | C88: 32
A89: 174 | B89: 0 | C89: 34
A90: 176 | B90: 0 | C90: 34
A91: 178 | B91: 0 | C91: 34
A92: 180 | B92: 0 | C92: 34
A93: 182 | B93: 0 | C93: 36
A94: 184 | B94: 0 | C94: 36
A95: 186 | B95: 0 | C95: 36
A96: 188 | B96: 0 | C96: 36
A97: 190 | B97: 0 | C97: 38
A98: 192 | B98: 0 | C98: 38
A99: 194 | B99: 0 | C99: 38
A100: 196 | B100: 0 | C100: 38
A101: 198 | B101: 0 | C101: 40
A102: 200 | B102: 0 | C102: 40
A103: 202 | B103: 0 | C103: 40
A104: 204 | B104: 0 | C104: 40
A105: 206 | B105: 0 | C105: 40
A106: 208 | B106: 0 | C106: 42
A107: 210 | B107: 0 | C107: 42
A108: 212 | B108: 0 | C108: 42
A109: 214 | B109: 0 | C109: 42
A110: 216 | B110: 0 | C110: 44
A111: 218 | B111: 0 | C111: 44
A112: 220 | B112: 0 | C112: 44
A113: 222 | B113: 0 | C113: 44
A114: 224 | B114: 0 | C114: 46
A115: 226 | B115: 0 | C115: 46
A116: 228 | B116: 0 | C116: 46
A117: 230 | B117: 0 | C117: 46
A118: 232 | B118: 0 | C118: 48
A119: 234 | B119: 0 | C119: 48
A120: 236 | B120: 0 | C120: 48
A121: 238 | B121: 0 | C121: 48
A122: 240 | B122: 0 | C122: 48
A123: 242 | B123: 0 | C123: 50
A124: 244 | B124: 0 | C124: 50
A125: 246 | B125: 0 | C125: 50
A126: 248 | B126: 0 | C126: 50
A127: 250 | B127: 0 | C127: 52
A128: 252 | B128: 0 | C128: 52
A129: 254 | B129: 0 | C129: 52
A130: 256 | B130: 0 | C130: 52
A131: 258 | B131: 0 | C131: 54
A132: 260 | B132: 0 | C132: 54
A133: 262 | B133: 0 | C133: 54
A134: 264 | B134: 0 | C134: 54
A135: 266 | B135: 0 | C135: 54
A136: 268 | B136: 0 | C136: 56
A137: 270 | B137: 0 | C137: 56
A138: 272 | B138: 0 | C138: 56
A139: 274 | B139: 0 | C139: 56
A140: 276 | B140: 0 | C140: 58
A141: 278 | B141: 0 | C141: 58
A142: 280 | B142: 0 | C142: 58
A143: 282 | B143: 0 | C143: 58
A144: 284 | B144: 0 | C144: 60
A145: 286 | B145: 0 | C145: 60
A146: 288 | B146: 0 | C146: 60
A147: 290 | B147: 0 | C147: 60
A148: 292 | B148: 0 | C148: 62
A149: 294 | B149: 0 | C149: 62
A150: 296 | B150: 0 | C150: 62
A151: 298 | B151: 0 | C151: 62
A152: 300 | B152: 0 | C152: 62
A153: 302 | B153: 0 | C153: 64
A154: 304 | B154: 0 | C154: 64
A155: 306 | B155: 0 | C155: 64
A156: 308 | B156: 0 | C156: 64
A157: 310 | B157: 0 | C157: 66
A158: 312 | B158: 0 | C158: 66
A159: 314 | B159: 0 | C159: 66
A160: 316 | B160: 0 | C160: 66
A161: 318 | B161: 0 | C161: 68
A162: 320 | B162: 0 | C162: 68
A163: 322 | B163: 0 | C163: 68
A164: 324 | B164: 0 | C164: 68
A165: 326 | B165: 0 | C165: 70
A166: 328 | B166: 0 | C166: 70
A167: 330 | B167: 0 | C167: 70
A168: 332 | B168: 0 | C168: 70
A169: 334 | B169: 0 | C169: 70
A170: 336 | B170: 0 | C170: 72
A171: 338 | B171: 0 | C171: 72
A172: 340 | B172: 0 | C172: 72
A173: 342 | B173: 0 | C173: 72
A174: 344 | B174: 0 | C174: 74
A175: 346 | B175: 0 | C175: 74
A176: 348 | B176: 0 | C176: 74
A177: 350 | B177: 0 | C177: 74
A178: 352 | B178: 0 | C178: 76
A179: 354 | B179: 0 | C179: 76
A180: 356 | B180: 0 | C180: 76
A181: 358 | B181: 0 | C181: 76
A182: 360 | B182: 0 | C182: 78
A183: 362 | B183: 0 | C183: 78
A184: 364 | B184: 0 | C184: 78
A185: 366 | B185: 0 | C185: 78
A186: 368 | B186: 0 | C186: 78
A187: 370 | B187: 0 | C187: 80
A188: 372 | B188: 0 | C188: 80
A189: 374 | B189: 0 | C189: 80
A190: 376 | B190: 0 | C190: 80
A191: 378 | B191: 0 | C191: 82
A192: 380 | B192: 0 | C192: 82
A193: 382 | B193: 0 | C193: 82
A194: 384 | B194: 0 | C194: 82
A195: 386 | B195: 0 | C195: 84
A196: 388 | B196: 0 | C196: 84
A197: 390 | B197: 0 | C197: 84
A198: 392 | B198: 0 | C198: 84
A199: 394 | B199: 0 | C199: 86
A200: 396 | B200: 0 | C200: 86
... 12821 more rows
